Workbook

Sheet ZAČÍNAME
B1: INFORMÁCIE O TEJTO ŠABLÓNE
B2: Sledujte prvotné investície do webovej lokality, zisky z nej a náklady pomocou tohto nástroja na zostavovanie rozpočtu pre webovú lokalitu.
B3: Zadaním podrobností do tabuliek automaticky vypočítate celkové súčty a evaluačné metriky.
B4: Poznámka:
B5: V hárku NÁSTROJ NA ZOSTAVOVANIE ROZPOČTU sú v stĺpci A uvedené ďalšie pokyny. Tento text je zámerne skrytý. Ak chcete text odstrániť, vyberte stĺpec A a potom stlačte kláves ODSTRÁNIŤ. Ak chcete text zobraziť, vyberte stĺpec A a potom zmeňte farbu písma.
B6: Ak chcete získať ďalšie informácie o tabuľkách v hárku, v tabuľke stlačte kláves SHIFT a potom kláves F10, vyberte možnosť TABUĽKA a potom vyberte položku ALTERNATÍVNY TEXT.

Sheet NÁSTROJ NA ZOSTAV. ROZPOČTU
B2: Quadrex Hardware
B3: NÁSTROJ NA ZOSTAVOVANIE ROZPOČTU PRE WEBOVÚ LOKALITU
B4: 2022-12-01
B6: Údaje spoločnosti | C6: Sadzba
B7: Požadovaná miera výnosnosti | C7: 10%
B8: Sadzba dane | C8: 30%
B10: Prvotné investície do webovej lokality | C10: Rok
B11: Hardvér (napr. servery) | C11: 25,000.00 EUR
B12: Softvér (napr. softvér katalógu elektronického obchodu) | C12: 15,000.00 EUR
B13: Vývoj (napr. návrh a vývoj lokality treťou stranou) | C13: 150,000.00 EUR
B14: Celkové počiatočné investície | C14: =SUBTOTAL(109,PočiatočnéInvestície[Rok]) -> 190,000.00 EUR
B16: Zisky z webovej lokality | C16: Rok 1 | D16: Rok 2 | E16: Rok 3
B17: Priamy predaj | C17: 15,000.00 EUR | D17: 50,000.00 EUR | E17: 75,000.00 EUR
B18: Prírastkový predaj vychádzajúci z vyššej efektívnosti propagácie alebo predajcu | C18: 25,000.00 EUR | D18: 25,000.00 EUR | E18: 25,000.00 EUR
B19: Prírastkový predaj vychádzajúci z aktívnejšej spoluúčasti partnera | C19: 25,000.00 EUR | D19: 25,000.00 EUR | E19: 25,000.00 EUR
B20: Znížené cestovné náklady | C20: 25,000.00 EUR | D20: 25,000.00 EUR | E20: 25,000.00 EUR
B21: Znížené náklady na služby pre zákazníkov | C21: 50,000.00 EUR | D21: 50,000.00 EUR | E21: 50,000.00 EUR
B22: Celkové zisky | C22: =SUBTOTAL(109,Zisky[Rok 1]) -> 140,000.00 EUR | D22: =SUBTOTAL(109,Zisky[Rok 2]) -> 175,000.00 EUR | E22: =SUBTOTAL(109,Zisky[Rok 3]) -> 200,000.00 EUR
B24: Náklady (okrem počiatočných kapitálových investícií) | C24: ROK 1 | D24: ROK 2 | E24: ROK 3
B25: Náklady na predaj | C25: 7,500.00 EUR | D25: 25,000.00 EUR | E25: 37,500.00 EUR
B26: Údržba | C26: 15,000.00 EUR | D26: 15,000.00 EUR | E26: 15,000.00 EUR
B27: Projektový manažment, podpora pre zákazníkov | C27: 35,000.00 EUR | D27: 35,000.00 EUR | E27: 35,000.00 EUR
B28: Online reklama, registrácia do vyhľadávacieho nástroja | C28: 10,000.00 EUR | D28: 10,000.00 EUR | E28: 10,000.00 EUR
B29: Odpisy kapitálových výdavkov (výpočet vychádza z trojročného obdobia) | C29: =PočiatočnéInvestície[[#Totals],[Rok]]/3 -> 63,333.33 EUR | D29: =PočiatočnéInvestície[[#Totals],[Rok]]/3 -> 63,333.33 EUR | E29: =PočiatočnéInvestície[[#Totals],[Rok]]/3 -> 63,333.33 EUR
B30: Celkové náklady | C30: =SUBTOTAL(109,Náklady[ROK 1]) -> 130,833.33 EUR | D30: =SUBTOTAL(109,Náklady[ROK 2]) -> 148,333.33 EUR | E30: =SUBTOTAL(109,Náklady[ROK 3]) -> 160,833.33 EUR
B32: Súčty | D32: Rok 1 | E32: Rok 2 | F32: Rok 3
B33: Čistý zisk (náklady) | D33: =Zisky[[#Totals],[Rok 1]]-Náklady[[#Totals],[ROK 1]] -> 9,166.67 EUR | E33: =Zisky[[#Totals],[Rok 2]]-Náklady[[#Totals],[ROK 2]] -> 26,666.67 EUR | F33: =Zisky[[#Totals],[Rok 3]]-Náklady[[#Totals],[ROK 3]] -> 39,166.67 EUR
B34: Daň | D34: =D33*SadzbaDane -> 2,750.00 EUR | E34: =E33*SadzbaDane -> 8,000.00 EUR | F34: =F33*SadzbaDane -> 11,750.00 EUR
B35: Hodnota po zdanení | D35: =D33-D34 -> 6,416.67 EUR | E35: 18,666.67 EUR | F35: 27,416.67 EUR
B36: Spätne pripočítané odpisy | D36: =C29 -> 63,333.33 EUR | E36: =D29 -> 63,333.33 EUR | F36: =E29 -> 63,333.33 EUR
B37: Peňažný tok | C37: =-PočiatočnéInvestície[[#Totals],[Rok]] -> -190,000.00 EUR | D37: =D35+D36 -> 69,750.00 EUR | E37: 82,000.00 EUR | F37: 90,750.00 EUR
B38: Kumulatívny peňažný tok | C38: =C37 -> -190,000.00 EUR | D38: =C38+D37 -> -120,250.00 EUR | E38: -38,250.00 EUR | F38: 52,500.00 EUR
B40: Evaluačné metriky | C40: Hodnoty
B41: Čistá súčasná hodnota (NPV) | C41: =C37+(NPV(ROR,D37:F37)) -> 9,359.50 EUR
B42: Miera vnútornej návratnosti (IRR) | C42: =IRR(C37:F37) -> 12.66%
B43: Obdobie návratnosti (v rokoch) | C43: =IF(F38<=0,"Viac ako 3 roky",IF(E38<=0,(F37-F38)/F37+2,IF(D38<=0,(E37-E38)/E37+1,IF(C38<=0,(D37-D38)/D37,"Nie je k dispozícii")))) -> 2.42
